bitfinex-derivatives/quotes_ETHF0:USTF0_20250520
["timestamp","ask_amount","ask_price","bid_price","bid_amount"]
[1747750307614,2.015275,2481.1,2481.0,0.80585]
[1747750307920,1.29394412,2481.2,2481.1,0.80584]
[1747750308114,0.00604412,2481.2,2481.1,12.324035]
[1747750308313,0.00604412,2481.2,2481.0,1.3719]
[1747750308515,4.11494912,2481.2,2481.1,9.503]
[1747750308721,0.80591,2480.9,2480.8,0.00604412]
[1747750308921,4.01371,2480.9,2480.8,0.00604412]
[1747750309221,13.76915,2480.9,2480.8,0.00604412]
[1747750309626,7.96324,2480.9,2480.8,0.81198412]
[1747750309820,4.75544,2480.9,2480.8,0.81198412]
[1747750310626,2.74,2480.9,2480.8,2.82742412]
[1747750310823,2.74,2480.9,2480.8,4.54932097]
[1747750311021,2.74,2480.9,2480.8,7.75712097]
[1747750311227,0.08486477,2481.1,2480.8,3.74338097]
[1747750311228,0.80589,2481.0,2480.8,3.74338097]
[1747750311424,1.3851,2481.0,2480.9,0.8059]
[1747750311723,1.3851,2481.0,2480.9,1.12830685]
[1747750312028,0.08486477,2481.1,2481.0,0.80588]
[1747750312228,0.08486477,2481.1,2481.0,2.20538]
[1747750312428,4.77e-06,2481.1,2481.0,9.220655]
[1747750312632,3.2078,2481.8,2481.7,0.80565]
[1747750312836,3.2078,2481.8,2481.7,10.30565]
[1747750313133,4.754705,2481.8,2481.7,10.30565]
[1747750313322,6.144005,2481.8,2481.7,10.30565]
[1747750313834,9.351805,2481.8,2481.7,9.5]
[1747750314025,10.157425,2481.8,2481.7,0.32239685]
[1747750314229,15.157425,2481.8,2481.7,9.82239685]
[1747750314533,15.157425,2481.8,2481.7,0.32239685]
[1747750315439,0.80568,2481.6,2481.5,9.499]
[1747750315836,0.80578,2481.3,2481.2,40.631]
[1747750316026,3.2078,2481.4,2480.8,0.00604412]
[1747750316336,5.98861,2481.5,2480.8,0.00604412]
[1747750316337,0.80591,2480.9,2480.8,0.00604412]
[1747750316846,5.49715,2480.9,2480.8,0.00604412]
[1747750317332,0.80601,2480.6,2480.5,0.32242726]
[1747750317523,0.80601,2480.6,2480.1,3.2078]
[1747750317524,0.80614,2480.2,2480.1,3.2078]
[1747750317933,2.822145,2480.2,2480.1,3.2078]
[1747750318142,5.562145,2480.2,2480.1,3.2078]
[1747750318335,4.756005,2480.2,2480.1,4.01397]
[1747750318642,6.143405,2480.2,2480.1,4.01397]
[1747750318838,6.949545,2480.2,2480.1,3.2078]
[1747750319035,0.80617,2480.1,2480.0,9.499]
[1747750319236,4.91517,2480.1,2480.0,9.499]
[1747750319537,4.91517,2480.1,2480.0,11.51509]
[1747750319737,4.109,2480.1,2480.0,9.499]
[1747750319934,4.109,2480.1,2480.0,11.51509]
[1747750320243,4.109,2480.1,2480.0,9.499]
[1747750320244,6.93126,2480.1,2480.0,9.499]
[1747750320434,0.8062,2480.0,2479.9,9.50504412]
[1747750320739,3.432,2480.0,2479.9,9.50504412]
[1747750320940,3.432,2480.0,2479.3,9.5]
[1747750320941,0.80636,2479.5,2479.3,9.5]
[1747750321144,0.80643,2479.3,2479.2,1.61e-06]
[1747750321630,2.82317,2479.3,2479.2,0.4287856]
[1747750321944,4.16307,2479.3,2479.2,0.4287856]
[1747750322133,6.90307,2479.3,2479.2,0.4287856]
[1747750322841,6.90307,2479.3,2479.2,1.2352456]
[1747750322842,6.09664,2479.3,2479.2,1.2352456]
[1747750323145,6.09664,2479.3,2479.2,0.4287856]
[1747750323146,6.90307,2479.3,2479.2,0.4287856]
[1747750323334,6.09664,2479.3,2479.2,1.2352456]
[1747750323644,6.09664,2479.3,2479.1,10.30647]
[1747750323645,5.56317,2479.3,2479.1,10.30647]
[1747750323846,4.75674,2479.3,2479.0,0.00604412]
[1747750324141,0.80649,2479.1,2479.0,0.00604412]
[1747750324535,4.16329,2479.1,2479.0,0.00604412]
[1747750325032,2.74,2479.3,2479.2,0.80646]
[1747750325238,2.74,2479.4,2479.3,0.80643]
[1747750325438,2.74,2479.4,2479.3,13.51523]
[1747750325642,5.56306,2479.4,2479.3,12.7088]
[1747750325841,5.56306,2479.4,2479.3,9.501]
[1747750326344,4.75666,2479.4,2479.3,10.30743]
[1747750326545,2.74,2479.4,2479.3,12.32409]
[1747750326947,4.75666,2479.4,2479.2,9.502]
[1747750327139,0.08486477,2479.3,2479.2,12.32516]
[1747750327344,0.08486477,2479.3,2479.2,10.30846]
[1747750327644,1.40316477,2479.3,2479.2,12.3252]
[1747750327946,0.08486477,2479.3,2479.2,12.3252]
[1747750328246,2.82486477,2479.3,2479.2,12.3252]
[1747750328443,6.19180477,2479.3,2479.1,3.2078]
[1747750328642,0.80649,2479.1,2479.0,0.22037704]
[1747750329043,2.82339,2479.1,2479.0,0.22037704]
[1747750329240,4.7569,2479.1,2479.0,1.02690704]
[1747750329445,6.91359,2479.1,2479.0,0.22037704]
[1747750329639,6.91359,2479.1,2479.0,0.00604412]
[1747750330445,6.91359,2479.1,2479.0,0.81257412]
[1747750330750,6.1071,2479.1,2479.0,0.81257412]
[1747750331050,6.91359,2479.1,2479.0,0.00604412]
[1747750332341,0.80659,2478.8,2478.7,0.32266086]
[1747750332547,3.2078,2478.8,2478.7,1.12928086]
[1747750332845,5.224945,2478.8,2478.7,1.12928086]
[1747750333149,6.031535,2478.8,2478.7,0.32266086]
[1747750333346,0.80666,2478.6,2478.5,1.39464412]
[1747750333550,1.2876,2478.7,2478.5,1.39464412]
[1747750333749,0.80666,2478.6,2478.5,0.00604412]
[1747750334148,5.56397,2478.6,2478.5,0.00604412]
[1747750334345,6.89227,2478.6,2478.5,0.00604412]
[1747750334941,6.89227,2478.6,2478.2,0.32266086]
[1747750334942,15.11893,2478.6,2478.2,0.32266086]
[1747750335148,0.80675,2478.3,2478.2,0.32266086]
[1747750335450,0.80675,2478.3,2478.2,1.12945086]
[1747750335749,6.08561,2478.6,2478.5,0.80669]
[1747750335750,2.74,2478.6,2478.5,0.80669]
[1747750336144,4.01441,2478.8,2478.7,0.80662]
[1747750336642,6.031555,2478.8,2478.7,0.80662]
[1747750336949,5.224945,2478.8,2478.7,0.80662]
[1747750337146,4.757145,2478.8,2478.7,0.80662]
[1747750337554,0.80666,2478.6,2478.5,1.3031]
[1747750337847,2.74,2478.8,2478.6,0.80664]
[1747750338050,0.80662,2478.7,2478.5,1.3031]
[1747750338251,0.80662,2478.7,2478.4,10.6354]
[1747750338252,0.80672,2478.4,2478.3,12.6188]
[1747750338446,0.80672,2478.4,2478.3,10.21775]
[1747750338747,2.82419001,2478.4,2478.3,9.411]
[1747750338952,4.12799001,2478.4,2478.3,9.411]
[1747750339252,6.86799001,2478.4,2478.3,9.411]
[1747750339450,6.86799001,2478.4,2477.9,10.8058]
[1747750339451,6.06127001,2478.4,2477.9,10.8058]
[1747750339652,6.86800001,2478.4,2478.0,2.01714]
[1747750339953,2.74,2478.4,2478.3,0.80675]
[1747750340153,0.80662,2478.7,2478.6,0.80663]
[1747750340451,3.29266477,2478.8,2478.5,0.80667]
[1747750340651,0.80665,2478.7,2478.6,2.09816]
[1747750341352,0.80665,2478.7,2478.6,1.2915]
[1747750341553,1.2863,2478.7,2478.6,2.09816]
[1747750341750,3.303525,2478.7,2478.6,2.09816]
[1747750341953,4.110145,2478.7,2478.6,2.09816]
[1747750342253,6.043525,2478.7,2478.6,2.09816]
[1747750343050,6.850145,2478.7,2478.6,1.2915]
[1747750343546,10.057945,2478.7,2478.6,1.2915]
[1747750343744,0.80668,2478.6,2478.3,9.411]
[1747750343950,1.3038,2478.6,2478.4,0.80672]
[1747750344145,6.06119,2478.6,2478.3,9.411]
[1747750344344,6.06119,2478.6,2478.3,9.73366086]
[1747750344345,0.80672,2478.4,2478.3,9.73366086]
[1747750344745,2.82419001,2478.4,2478.3,9.73366086]
[1747750345350,6.03199001,2478.4,2478.3,9.73366086]
[1747750345550,2.82419001,2478.4,2478.3,9.73366086]
[1747750345749,6.03199001,2478.4,2478.3,9.73366086]
[1747750345951,2.82419001,2478.4,2478.3,9.73366086]
[1747750346355,2.74,2478.5,2478.3,11.75113086]
[1747750346555,2.74,2478.5,2478.4,0.80672]
[1747750346750,2.74,2478.5,2478.4,2.16002]
[1747750346949,2.74,2478.5,2478.4,10.38191]
[1747750347157,0.00604412,2479.0,2478.9,0.80656]
[1747750347359,2.82955912,2479.0,2478.9,9.413]
[1747750347549,4.21695912,2479.0,2478.9,9.413]
[1747750348356,4.21695912,2479.0,2478.9,10.75655378]
[1747750348357,6.15042912,2479.0,2478.9,10.75655378]
[1747750348558,2.74604412,2479.0,2478.9,17.77353878]
[1747750349052,3.2078,2479.7,2479.6,0.80633]
[1747750349247,1.353,2479.8,2479.6,2.016415]
[1747750349446,1.353,2479.8,2479.5,9.413]
[1747750349650,3.369415,2479.8,2479.5,9.413]
[1747750349847,0.80633,2479.6,2479.5,9.413]
[1747750350056,0.80633,2479.6,2479.5,10.8165]
[1747750350252,5.562825,2479.6,2479.5,10.8165]
[1747750350454,5.562825,2479.6,2479.5,9.413]
[1747750351153,0.80636,2479.5,2479.4,0.42853711]
[1747750351354,5.36716,2479.5,2479.4,0.42853711]
[1747750351562,13.567935,2479.5,2479.4,0.42853711]
[1747750351761,8.567935,2479.5,2479.4,0.42853711]
[1747750352057,8.567935,2479.5,2479.4,0.32263008]
[1747750352370,11.307935,2479.5,2479.4,0.32263008]
[1747750353357,10.123735,2479.5,2479.4,0.32263008]
[1747750353663,5.9478,2479.5,2479.4,13.87100508]
[1747750353962,2.74,2479.5,2479.4,13.87100508]
[1747750354165,3.54636,2479.5,2479.4,11.04803008]
[1747750354361,3.54636,2479.5,2479.4,0.32263008]
[1747750354564,6.91519977,2479.5,2479.4,0.32263008]
[1747750356460,11.91519977,2479.5,2479.4,0.32263008]
[1747750356860,6.91519977,2479.5,2479.4,0.32263008]
[1747750357065,6.91519977,2479.5,2479.4,1.61543008]
[1747750357066,3.63122477,2479.5,2479.4,1.61543008]
[1747750357370,0.08486477,2479.5,2479.4,2.42183008]
[1747750357862,0.08486477,2479.5,2479.4,4.43840508]
[1747750358259,2.82486477,2479.5,2479.4,4.43840508]
[1747750358561,2.74,2479.5,2479.4,4.43840508]
[1747750358766,3.54636,2479.5,2479.4,4.43840508]
[1747750359065,2.74,2479.5,2479.4,4.43840508]
[1747750359371,3.2078,2479.6,2479.5,0.80636]
[1747750359560,3.2078,2479.6,2479.5,2.20506]
[1747750359876,0.00604412,2479.8,2479.7,0.8063]
[1747750360164,0.00604412,2479.8,2479.7,12.23363]
[1747750360360,0.00604412,2479.8,2479.7,13.63233]
[1747750360757,0.00604412,2479.8,2479.7,13.95496008]
[1747750360962,2.82864412,2479.8,2479.7,0.32263008]
[1747750361172,5.56864412,2479.8,2479.7,0.32263008]
[1747750361763,6.81334412,2479.8,2479.7,0.32263008]
[1747750362569,0.08486477,2479.5,2479.4,0.21493026]
[1747750362756,4.09902477,2479.5,2479.4,0.21493026]
[1747750362958,6.11559977,2479.5,2479.4,0.21493026]
[1747750363162,8.85559977,2479.5,2479.4,0.21493026]
[1747750364163,4.84143977,2479.5,2479.4,1.12901428]
[1747750364364,2.82486477,2479.5,2479.4,13.87558928]
[1747750365769,5.64779977,2479.5,2479.4,9.73361428]
[1747750366069,8.85559977,2479.5,2479.4,9.73361428]
[1747750366464,8.85559977,2479.5,2479.4,10.02026822]
[1747750366664,8.04923977,2479.5,2479.4,10.82666822]
[1747750366866,8.85559977,2479.5,2479.4,12.14566822]
[1747750367065,8.85559977,2479.5,2479.4,11.33926822]
[1747750367866,2.016,2479.4,2479.0,0.42853711]
[1747750368066,4.01429,2479.1,2479.0,0.42853711]
[1747750368571,6.03119,2479.1,2479.0,0.42853711]
[1747750369170,9.2448,2479.1,2479.0,0.42853711]
[1747750369362,9.2448,2479.1,2479.0,1.23506711]
[1747750369363,7.2279,2479.1,2479.0,1.23506711]
[1747750369567,10.05129,2479.1,2479.0,0.42853711]
[1747750369867,0.80659,2478.8,2478.7,1.2659]
[1747750370071,2.0164,2478.9,2478.5,0.80668]
[1747750370374,7.2279,2479.1,2478.5,11.42368]
[1747750370571,7.2279,2479.1,2478.8,0.80657]
[1747750370572,2.07434,2479.0,2478.8,0.80657]
[1747750370776,5.9478,2479.1,2479.0,0.80653]
[1747750371165,3.2078,2479.1,2479.0,4.18453]
[1747750371464,2.5388,2479.4,2479.3,0.80643]
[1747750371666,0.08486477,2479.5,2479.4,0.8064]
[1747750372168,0.08486477,2479.5,2479.4,4.184075]
[1747750372373,0.08486477,2479.5,2479.4,13.591075]
[1747750372865,0.08486477,2479.5,2479.4,4.184075]
[1747750373068,0.08486477,2479.5,2479.4,13.591075]
[1747750373469,0.08486477,2479.5,2479.4,14.773875]
[1747750373971,0.08486477,2479.5,2479.4,19.773875]
[1747750374169,4.77e-06,2479.5,2479.4,19.773875]
[1747750374975,0.00604412,2479.8,2479.7,0.8063]
[1747750375275,3.2078,2480.5,2480.4,0.80607]
[1747750375476,4.01385,2480.5,2480.3,9.407]
[1747750375780,1.383,2480.4,2480.3,9.407]
[1747750375967,1.383,2480.4,2480.3,10.2131]
[1747750376167,2.74,2480.4,2480.3,12.22894499]
[1747750376871,2.74,2480.4,2480.3,10.2131]
[1747750377072,2.74,2480.4,2480.3,12.22894499]
[1747750377873,4.1147,2480.4,2480.3,12.22894499]
[1747750378073,4.92077,2480.4,2480.3,9.407]
[1747750378478,4.1147,2480.4,2480.3,10.2131]
[1747750378681,4.1147,2480.4,2480.3,13.61974499]
[1747750379583,2.74,2480.4,2480.3,13.61974499]
[1747750380077,0.00604412,2480.6,2480.5,0.80604]
[1747750380478,1.2408,2481.1,2480.5,2.01568]
[1747750380777,0.80607,2480.4,2480.3,0.32244861]
[1747750380980,4.01387,2480.4,2480.3,0.32244861]
[1747750381181,8.769715,2480.4,2480.3,0.32244861]
[1747750382877,0.80614,2480.2,2480.1,0.00604412]
[1747750383074,3.54614,2480.2,2480.1,0.00604412]
[1747750383271,5.562145,2480.2,2480.1,0.00604412]
[1747750383479,6.931045,2480.2,2480.1,0.00604412]
[1747750384286,2.74,2480.2,2480.1,2.82821912]
[1747750384472,3.54614,2480.2,2480.1,4.11961912]
[1747750384781,4.756005,2480.2,2480.1,0.81221412]
[1747750384973,4.756005,2480.2,2480.1,2.10361412]
[1747750385175,1.3689,2480.3,2480.1,0.00604412]
[1747750385382,0.80614,2480.2,2480.1,0.00604412]
[1747750385781,4.214545,2480.2,2480.1,0.00604412]
[1747750386278,6.954545,2480.2,2480.1,0.00604412]
[1747750386776,8.155645,2480.2,2480.1,0.81221412]
[1747750387178,8.155645,2480.2,2480.1,0.00604412]
[1747750388278,8.155645,2480.2,2480.1,0.81221412]
[1747750388486,8.155645,2480.2,2480.1,0.00604412]
[1747750388683,8.155645,2480.2,2480.1,0.32856343]
[1747750389078,8.155645,2480.2,2480.1,1.13473343]
[1747750389376,2.74,2480.2,2480.1,3.15073843]
[1747750389584,3.54614,2480.2,2480.1,2.34456843]
[1747750389777,5.562145,2480.2,2480.1,0.32856343]
[1747750391380,5.562145,2480.2,2480.1,0.00604412]
[1747750392387,9.756005,2480.2,2479.8,0.80626]
[1747750392591,0.80633,2479.6,2479.5,10.64054785]
[1747750392784,4.01413,2479.6,2479.5,0.43018785]
[1747750392987,0.80643,2479.3,2479.2,0.57390786]
[1747750393185,0.80646,2479.2,2479.1,0.80648]
[1747750393383,2.08186,2479.2,2479.1,0.80648]
[1747750393691,3.29222,2479.2,2479.1,0.80648]
[1747750394088,6.83868,2479.2,2479.1,0.80648]
[1747750394290,0.80649,2479.1,2479.0,9.404]
[1747750394478,3.26569,2479.1,2479.0,10.21053]
[1747750394682,5.28259,2479.1,2479.0,9.404]
[1747750394884,5.28259,2479.1,2479.0,10.53317923]
[1747750395279,2.74,2479.1,2479.0,12.55007923]
[1747750395483,2.74,2479.1,2479.0,13.85917923]
[1747750397398,0.00604412,2479.3,2479.2,0.80646]
[1747750397786,0.00604412,2479.3,2479.2,2.8232]
[1747750397995,3.2078,2479.9,2479.8,0.80627]
[1747750398193,3.2078,2479.9,2479.8,10.20327]
[1747750398388,3.2078,2479.9,2479.8,12.21952]
[1747750398889,3.2078,2479.9,2479.8,10.52591923]
[1747750399088,5.9478,2479.9,2479.8,12.54216923]
[1747750399286,8.77028001,2479.9,2479.8,9.71964923]
[1747750400903,7.96405001,2479.9,2479.8,9.71964923]
[1747750401197,7.96405001,2479.9,2479.8,10.52591923]
[1747750401595,5.9478,2479.9,2479.8,10.52591923]
[1747750401796,5.9478,2479.9,2479.8,12.54216923]
[1747750401996,6.75403,2479.9,2479.8,9.71964923]
[1747750402196,7.2888,2479.9,2479.8,10.52591923]
[1747750404203,9.30505001,2479.9,2479.8,10.52591923]
[1747750404701,7.2888,2479.9,2479.8,10.52591923]
[1747750405090,7.2888,2479.9,2479.8,12.54216923]
[1747750405396,5.9478,2479.9,2479.8,12.54216923]
[1747750405999,5.9478,2479.9,2479.8,12.82882061]
[1747750406198,3.2078,2479.9,2479.8,14.14642061]
[1747750406398,6.03028001,2479.9,2479.8,0.60930061]
[1747750407200,8.77028001,2479.9,2479.8,0.60930061]
[1747750407603,11.82028001,2479.9,2479.8,0.32264923]
[1747750409098,0.8063,2479.7,2479.6,9.397]
[1747750409294,1.3243,2479.8,2479.7,0.8063]
[1747750409694,3.34063,2479.8,2479.7,0.8063]
[1747750410204,6.08063,2479.8,2479.7,0.8063]
[1747750410399,0.8063,2479.7,2479.6,10.20331]
[1747750410607,0.80633,2479.6,2479.5,9.397]
[1747750410800,4.01413,2479.6,2479.5,9.68365138]
[1747750411001,4.01413,2479.6,2479.5,1.09301138]
[1747750411002,4.636295,2479.6,2479.5,1.09301138]
[1747750411302,8.182625,2479.6,2479.5,0.28665138]
[1747750411504,11.390425,2479.6,2479.5,0.28665138]
[1747750411700,7.964295,2479.6,2479.1,0.57390786]
[1747750412001,5.22389,2479.3,2478.9,0.57995198]
[1747750412207,0.80653,2479.0,2478.9,0.57995198]
[1747750412411,0.80653,2479.0,2478.9,1.38651198]
[1747750412605,2.823515,2479.0,2478.9,0.57995198]
[1747750412908,2.6198,2479.2,2479.1,0.80649]
[1747750413097,5.4432,2479.2,2479.1,0.80649]
[1747750413498,0.80649,2479.1,2479.0,2.12511]
[1747750413694,2.12729,2479.1,2479.0,2.12511]
[1747750413906,4.14419,2479.1,2479.0,2.12511]
[1747750414100,6.88419,2479.1,2479.0,2.12511]
[1747750415210,2.74,2479.1,2479.0,4.46467657]
[1747750415404,2.74,2479.1,2479.0,13.86167657]
[1747750415604,2.74,2479.1,2479.0,15.04367657]
[1747750416110,4.01423,2479.3,2479.2,0.80646]
[1747750416707,4.01423,2479.3,2479.2,2.01674]
[1747750417009,4.01423,2479.3,2479.2,2.8232]
[1747750417205,5.9478,2479.3,2479.2,3.14586657]
[1747750417409,6.75423,2479.3,2479.2,2.33940657]
[1747750417609,7.3158,2479.3,2479.2,3.14586657]
[1747750418012,5.9478,2479.3,2479.2,3.14586657]
[1747750418511,5.9478,2479.3,2479.2,4.52486657]
[1747750418913,2.74,2479.3,2479.2,4.52486657]
[1747750419210,0.80642,2479.4,2479.2,3.71840657]
[1747750419410,0.8064,2479.4,2479.3,2.15212]
[1747750419611,0.8064,2479.4,2479.3,1.3457]
[1747750419815,0.80639,2479.5,2479.3,2.15213]
[1747750420211,0.80643,2479.3,2479.2,0.32266657]
[1747750420611,5.50287,2479.3,2479.2,0.32266657]
[1747750421116,8.24287,2479.3,2479.2,0.32266657]
[1747750421309,6.14964,2479.3,2479.2,1.12912657]
[1747750421509,4.93933,2479.3,2479.2,0.32266657]
[1747750422215,6.95607,2479.3,2479.2,0.32266657]
[1747750423907,10.00607,2479.3,2479.2,0.32266657]
[1747750424110,0.80653,2479.0,2478.9,0.00604412]
[1747750424309,4.01433,2479.0,2478.9,0.81260412]
[1747750424508,3.2078,2479.0,2478.9,4.11828912]
[1747750424709,7.98934,2479.3,2479.2,0.80646]
[1747750424710,4.1329,2479.3,2479.2,0.80646]
[1747750424910,2.74,2479.3,2479.2,10.20446]
[1747750425213,0.8064,2479.4,2479.3,0.80643]
[1747750425413,4.01419,2479.5,2479.4,0.8064]
[1747750425813,6.030765,2479.5,2479.4,0.8064]
[1747750426215,8.770765,2479.5,2479.4,0.8064]
[1747750426415,5.9478,2479.5,2479.4,2.822975]
[1747750426617,5.9478,2479.5,2479.4,4.149475]
[1747750427010,6.75416,2479.5,2479.4,2.1329]
[1747750427217,6.75416,2479.5,2479.4,2.45552073]
[1747750427719,6.75416,2479.5,2479.4,4.47209573]
[1747750427917,5.9478,2479.5,2479.4,4.47209573]
[1747750428216,3.2078,2479.5,2479.4,4.47209573]
[1747750429207,5.9478,2479.5,2479.4,4.47209573]
[1747750429621,6.03266477,2479.5,2479.4,4.47209573]
[1747750429814,2.82486477,2479.5,2479.4,4.47209573]
[1747750430318,3.63122477,2479.5,2479.4,4.47209573]
[1747750430620,6.83902477,2479.5,2479.4,4.47209573]
[1747750430918,6.83902477,2479.5,2479.4,3.66569573]
[1747750431120,8.85559977,2479.5,2479.4,1.64912073]
[1747750431417,8.85559977,2479.5,2479.4,1.86440864]
[1747750431614,8.85559977,2479.5,2479.4,0.53790864]
[1747750434519,8.85559977,2479.5,2479.4,0.32262073]
[1747750437121,8.85559977,2479.5,2479.4,1.12902073]
[1747750437421,8.04923977,2479.5,2479.4,1.12902073]
[1747750437626,8.85559977,2479.5,2479.4,1.12902073]
[1747750438225,8.85559977,2479.5,2479.4,0.32262073]
[1747750438822,2.82486477,2479.5,2479.4,3.14559573]
[1747750439023,2.82486477,2479.5,2479.4,4.49999573]
[1747750439923,2.82486477,2479.5,2479.4,3.69359573]
[1747750440223,5.64779977,2479.5,2479.4,0.32262073]
[1747750440616,5.64779977,2479.5,2479.4,1.12902073]
[1747750440924,4.84143977,2479.5,2479.4,1.12902073]
[1747750441120,2.82486477,2479.5,2479.4,4.47489573]
[1747750441721,0.05549049,2479.5,2479.4,12.68269573]
[1747750441924,0.00604412,2480.1,2480.0,0.8062]
[1747750442225,0.00604412,2480.1,2480.0,10.1852]
[1747750442429,0.00604412,2480.1,2480.0,12.20129]
[1747750443017,0.00604412,2480.1,2480.0,17.20129]
[1747750443224,4.12e-06,2480.1,2480.0,17.20129]
[1747750443722,5.99e-06,2480.4,2480.3,0.8061]
[1747750443929,5.99e-06,2480.4,2480.3,4.0139]
[1747750444223,5.99e-06,2480.4,2480.3,13.76974499]
[1747750444420,5.99e-06,2480.4,2480.3,14.16786323]
[1747750444620,5.99e-06,2480.4,2480.3,10.15174499]
[1747750445231,5.99e-06,2480.4,2480.3,10.80606572]
[1747750445430,0.00604412,2480.6,2480.5,0.80604]
[1747750445627,0.00604412,2480.6,2480.5,10.18404]
[1747750445931,0.00604412,2480.6,2480.5,12.19972]
[1747750446131,2.74,2480.7,2480.5,9.66390632]
[1747750446432,1.4039,2480.6,2480.5,10.18404]
[1747750446734,1.4039,2480.6,2480.5,10.59596724]
[1747750446930,4.22559,2480.6,2480.5,0.69790322]
[1747750447128,11.15958,2480.6,2480.3,0.00604412]
[1747750447429,4.01387,2480.4,2480.3,0.00604412]
[1747750447823,0.8063,2479.7,2479.6,0.28654083]
[1747750448134,6.7541,2479.7,2479.6,0.28654083]
[1747750448336,8.770515,2479.7,2479.6,0.28654083]
[1747750448625,8.770515,2479.7,2479.2,0.80645]
[1747750448626,0.80643,2479.3,2479.2,0.80645]
[1747750448829,0.80646,2479.2,2479.1,0.28654083]
[1747750449029,3.2078,2479.4,2479.3,0.80643]
[1747750449528,6.03086,2479.4,2479.3,0.80643]
[1747750450330,8.77086,2479.4,2479.3,0.80643]
[1747750451230,0.80644,2479.3,2479.2,0.80644]
[1747750451743,0.80649,2479.1,2479.0,0.00604412]
[1747750452031,4.01429,2479.1,2479.0,0.00604412]
[1747750452224,0.80656,2478.9,2478.8,0.28654083]
[1747750452631,7.823625,2478.9,2478.8,0.28654083]
[1747750452933,2.823625,2478.9,2478.8,0.28654083]
[1747750453133,4.757065,2478.9,2478.8,1.09313083]
[1747750453434,5.563625,2478.9,2478.8,1.09313083]
[1747750453624,0.80659,2478.8,2478.7,0.42993552]
[1747750453823,2.01657,2478.7,2478.1,0.8068]
[1747750454033,0.80685,2478.1,2477.9,0.28665738]
[1747750454331,3.2078,2478.2,2478.0,0.80685]
[1747750454532,0.80683,2478.1,2477.9,1.09352738]
[1747750454723,5.23155912,2478.2,2477.9,0.28665738]
[1747750454919,5.23155912,2478.2,2478.1,0.80682]
[1747750454920,0.00604412,2478.2,2478.1,0.80682]
[1747750455327,0.00604412,2478.2,2478.1,2.824455]
[1747750455729,0.00604412,2478.2,2478.1,7.824455]
[1747750456225,1.286,2478.9,2478.8,0.80659]
[1747750456226,3.2078,2478.9,2478.8,0.80659]
[1747750456422,1.2985,2479.0,2478.9,0.80656]
[1747750456630,2.10503,2479.0,2478.9,0.80656]
[1747750456832,5.31283,2479.0,2478.9,0.80656]
[1747750457229,0.80656,2478.9,2478.8,10.18758]
[1747750457437,0.80656,2478.9,2478.8,9.381]
[1747750457934,2.823625,2478.9,2478.8,9.381]
[1747750458234,6.809225,2478.9,2478.8,9.381]
[1747750458642,6.002665,2478.9,2478.8,10.18759]
[1747750458834,2.74,2478.9,2478.8,9.381]
[1747750459032,2.74,2478.9,2478.8,10.18759]
[1747750459530,5.563625,2478.9,2478.8,10.18759]
[1747750459835,0.80675,2478.4,2478.0,4.46]
[1747750460029,3.2078,2478.8,2478.7,0.80662]
[1747750460431,4.01439,2478.8,2478.7,2.823765]
[1747750460732,3.2078,2478.8,2478.7,2.823765]
[1747750460935,3.2078,2478.8,2478.5,1.3885]
[1747750461140,5.225025,2478.8,2478.3,9.359]
[1747750461435,0.80671,2478.5,2478.4,0.80669]
[1747750461736,2.10763,2478.7,2478.6,0.80666]
[1747750461933,1.301,2478.7,2478.6,0.80666]
[1747750462133,3.2078,2478.8,2478.7,0.80662]
[1747750462438,3.2078,2478.8,2478.7,2.09572]
[1747750462832,3.2078,2478.8,2478.7,4.112865]
[1747750463033,0.08486477,2478.9,2478.7,12.665245]
[1747750463226,3.2078,2479.7,2478.8,1.2891]
[1747750463429,1.3917,2479.9,2479.8,0.80627]
[1747750463841,0.80627,2479.8,2479.7,9.359]
[1747750464231,4.93797,2479.8,2479.7,12.18163]
[1747750464431,4.93797,2479.8,2479.7,9.359]
[1747750464631,6.9543,2479.8,2479.7,9.359]
[1747750465631,6.14803,2479.8,2479.7,10.1653]
[1747750465831,2.74,2479.8,2479.7,12.18163]
[1747750466027,1.16139634,2479.8,2479.7,17.18163]
[1747750466238,0.00604412,2480.0,2479.9,0.80623]
[1747750466831,0.00604412,2480.0,2479.9,7.8224]
[1747750467031,0.00604412,2480.0,2479.9,11.0302]
[1747750467626,0.00604412,2480.0,2479.9,11.35288614]
[1747750468638,4.12e-06,2480.0,2479.9,11.35288614]
[1747750469243,4.12e-06,2480.0,2479.9,14.09288614]
[1747750472444,4.12e-06,2480.0,2479.9,9.09288614]
[1747750472635,4.12e-06,2480.0,2479.9,18.44788614]
[1747750473240,4.12e-06,2480.0,2479.9,15.70788614]
[1747750474139,4.12e-06,2480.0,2479.9,0.32268614]
[1747750474345,3.37017412,2480.0,2479.9,10.48391614]
[1747750474537,1.35400412,2480.0,2479.9,10.16123]
[1747750475042,4.12e-06,2480.0,2479.9,10.16123]
[1747750475241,0.08486889,2480.0,2479.9,10.16123]
[1747750475443,2.10103889,2480.0,2479.9,9.355]
[1747750475642,3.45503889,2480.0,2479.9,10.16123]
[1747750475842,0.08486889,2480.0,2479.9,10.16123]
[1747750476448,0.08486889,2480.0,2479.9,13.4779]
[1747750477342,0.08486889,2480.0,2479.9,13.80058614]
[1747750477545,0.08486889,2480.0,2479.9,2.33885614]
[1747750477753,5.08486889,2480.0,2477.8,5.33471442]
[1747750478044,5.08486889,2480.0,2474.7,9.57168005]
[1747750478045,2.02046,2474.0,2471.4,4.037]
[1747750478245,3.2078,2472.6,2471.1,40.64]
[1747750478450,3.2078,2472.3,2472.2,10.32193144]
[1747750478639,3.2078,2472.3,2472.0,0.00605645]
[1747750478840,10.23033,2472.3,2470.8,28.48987421]
[1747750479047,3.2078,2470.3,2470.2,10.48856892]
[1747750479341,1.3322,2472.2,2470.2,12.355]
[1747750479648,3.2078,2471.3,2470.7,26.29374277]
[1747750479841,3.2078,2471.3,2470.5,3.2078]
[1747750479842,3.2078,2471.2,2470.8,0.00606907]